lending/lending_fUSD_20240603
["ID","MTS","AMOUNT","RATE_DAILY","PERIOD"]
[328470484,1717423849504,-500.0,0.00031506,4]
[328470485,1717423849513,-500.0,0.00031506,4]
[328470486,1717423849523,-500.0,0.00031506,4]
[328470487,1717423849532,-500.0,0.00031506,4]
[328470488,1717423849542,-207.95569975,0.00031506,4]
[328470489,1717423849551,-500.0,0.00031506,4]
[328470490,1717423849560,-500.0,0.00031506,4]
[328470491,1717423849569,-500.0,0.00031506,4]
[328470492,1717423849579,-500.0,0.00031506,4]
[328470493,1717423849589,-500.0,0.00031506,4]
[328470494,1717423849598,-500.0,0.00031506,4]
[328470495,1717423849608,-521.16030048,0.00031506,4]
[328470496,1717423849617,-500.0,0.00031506,4]
[328470497,1717423849627,-500.0,0.00031506,4]
[328470498,1717423849639,-168.6931277,0.00031506,4]
[328470499,1717423849648,-500.0,0.00031506,4]
[328470500,1717423849657,-173.3540168,0.00031506,4]
[328470501,1717423849667,-500.0,0.00031506,4]
[328470502,1717423849676,-500.0,0.00031506,4]
[328470503,1717423849686,-357.84076706,0.00031506,4]
[328470504,1717423849695,-500.0,0.00031506,4]
[328470505,1717423849704,-500.0,0.00031506,4]
[328470506,1717423849715,-500.0,0.00031506,4]
[328470507,1717423849724,-500.0,0.00031506,4]
[328470508,1717423849733,-500.0,0.00031506,4]
[328470509,1717423849742,-500.0,0.00031506,4]
[328470510,1717423849751,-918.28,0.00031506,4]
[328470511,1717423849761,-1370.83,0.00031506,4]
[328470512,1717423849770,-500.0,0.00031506,4]
[328470513,1717423849779,-500.0,0.00031506,4]
[328470514,1717423849788,-151.0,0.00031506,7]
[328470515,1717423849798,-1000.18,0.00031506,4]
[328470516,1717423849807,-151.0,0.00031506,7]
[328470517,1717423849816,-500.0,0.00031506,4]
[328470518,1717423849826,-2105.69,0.00031506,4]
[328470519,1717423849840,-698.67,0.00031506,4]
[328470520,1717423849849,-898.54,0.00031506,4]
[328470521,1717423849859,-5027.84,0.00031506,4]
[328470522,1717423849868,-500.0,0.00031506,4]
[328470523,1717423849879,-500.0,0.00031506,4]
[328470524,1717423849889,-500.0,0.00031506,4]
[328470525,1717423849898,-500.0,0.00031506,4]
[328470526,1717423849907,-500.0,0.00031506,4]
[328470527,1717423849916,-211.334701,0.00031506,7]
[328470528,1717423849928,-211.334701,0.00031506,7]
[328470529,1717423849937,-500.0,0.00031506,4]
[328470530,1717423849947,-500.0,0.00031506,4]
[328470531,1717423849958,-500.0,0.00031506,4]
[328470532,1717423849968,-500.0,0.00031506,4]
[328470533,1717423849978,-374.531371,0.00031506,7]
[328470534,1717423849987,-151.0,0.00031506,7]
[328470535,1717423849996,-374.531371,0.00031506,7]
[328470536,1717423850006,-500.0,0.00031506,4]
[328470537,1717423850015,-500.0,0.00031506,4]
[328470538,1717423850025,-500.0,0.00031506,4]
[328470539,1717423850034,-151.0,0.00031506,7]
[328470540,1717423850043,-500.0,0.00031506,4]
[328470541,1717423850052,-500.0,0.00031506,4]
[328470542,1717423850061,-500.0,0.00031506,4]
[328470543,1717423850070,-151.0,0.00031506,7]
[328470544,1717423850080,-500.0,0.00031506,4]
[328470545,1717423850089,-500.0,0.00031506,4]
[328470546,1717423850098,-618.53,0.00031506,4]
[328470547,1717423850107,-598.01,0.00031506,4]
[328470548,1717423850116,-4233.41,0.00031506,4]
[328470549,1717423850125,-151.0,0.00031506,7]
[328470550,1717423850135,-151.0,0.00031506,7]
[328470551,1717423850145,-500.0,0.00031506,4]
[328470552,1717423850154,-500.0,0.00031506,4]
[328470553,1717423850163,-500.0,0.00031506,4]
[328470554,1717423850173,-500.0,0.00031506,4]
[328470555,1717423850184,-500.0,0.00031506,4]
[328470556,1717423850194,-500.0,0.00031506,4]
[328470557,1717423850203,-500.0,0.00031506,4]
[328470558,1717423850215,-436.53,0.00031506,4]
[328470559,1717423850225,-500.0,0.00031506,4]
[328470560,1717423850234,-500.0,0.00031506,4]
[328470561,1717423850245,-523.72,0.00031506,4]
[328470562,1717423850255,-152.656571,0.00031539,2]
[328470563,1717423850264,-1176.68345313,0.00031547,2]
[328470564,1717423850274,-200.0,0.00031623,2]
[328470565,1717423850283,-151.0,0.00031633,7]
[328470566,1717423850293,-151.0,0.00031633,7]
[328470567,1717423850302,-151.0,0.00031633,7]
[328470568,1717423850311,-151.0,0.00031633,7]
[328470569,1717423850321,-296.224106,0.00031633,7]
[328470570,1717423850331,-151.0,0.00031633,7]
[328470571,1717423850341,-1296.53199475,0.00031633,4]
[328470572,1717423850350,-2009.24235392,0.00031633,2]
[328470573,1717423850360,-313.83474584,0.00031633,7]
[328470574,1717423850368,-2042.88181228,0.00031661,7]
[328470575,1717423850379,-176.32029516,0.0003168,3]
[328470576,1717423850389,-9215.20598042,0.0003168,3]
[328470577,1717423850398,-151.0,0.0003168,7]
[328470578,1717423850408,-2042.88181228,0.00031717,7]
[328470579,1717423850417,-2138.2652,0.0003176,2]
[328470580,1717423850428,-500.0,0.00031778,4]
[328470581,1717423850437,-349.3,0.00031778,4]
[328470582,1717423850447,-500.0,0.00031778,4]
[328470583,1717423850456,-481.12,0.00031778,4]
[328470584,1717423850466,-500.0,0.00031778,4]
[328470585,1717423850475,-757.65,0.00031778,4]
[328470586,1717423850484,-500.0,0.00031778,4]
[328470587,1717423850493,-500.0,0.00031778,4]
[328470588,1717423850503,-874.8,0.00031778,4]
[328470589,1717423850513,-649.01994951,0.00031778,4]
[328470590,1717423850523,-500.0,0.00031778,4]
[328470591,1717423850532,-840.86,0.00031778,4]
[328470592,1717423850542,-500.0,0.00031778,4]
[328470593,1717423850552,-549.4537212,0.00031778,4]
[328470594,1717423850562,-500.0,0.00031778,4]
[328470595,1717423850572,-151.0,0.00031778,7]
[328470596,1717423850581,-500.0,0.00031778,4]
[328470597,1717423850591,-500.0,0.00031778,4]
[328470598,1717423850600,-500.0,0.00031778,4]
[328470599,1717423850610,-500.0,0.00031778,4]
[328470600,1717423850620,-500.0,0.00031778,4]
[328470601,1717423850629,-500.0,0.00031778,4]
[328470602,1717423850640,-500.0,0.00031778,4]
[328470603,1717423850649,-500.0,0.00031778,4]
[328470604,1717423850658,-500.0,0.00031778,4]
[328470605,1717423850667,-500.0,0.00031778,4]
[328470606,1717423850677,-500.0,0.00031778,4]
[328470607,1717423850687,-500.0,0.00031778,4]
[328470608,1717423850696,-573.67694156,0.00031778,4]
[328470609,1717423850706,-500.0,0.00031778,4]
[328470610,1717423850716,-588.11,0.00031778,4]
[328470611,1717423850725,-500.0,0.00031778,4]
[328470612,1717423850735,-500.0,0.00031778,4]
[328470613,1717423850746,-500.0,0.00031778,4]
[328470614,1717423850755,-516.13,0.00031778,4]
[328470615,1717423850765,-529.46,0.00031778,4]
[328470616,1717423850775,-500.0,0.00031778,4]
[328470617,1717423850784,-500.0,0.00031778,4]
[328470618,1717423850794,-500.0,0.00031778,4]
[328470619,1717423850804,-500.0,0.00031778,4]
[328470620,1717423850814,-606.72,0.00031778,4]
[328470621,1717423850824,-519.1,0.00031778,4]
[328470622,1717423850834,-500.0,0.00031778,4]
[328470623,1717423850847,-4664.69,0.00031778,4]
[328470624,1717423850857,-877.52,0.00031778,4]
[328470625,1717423850866,-528.84,0.00031778,4]
[328470626,1717423850876,-530.58,0.00031778,4]
[328470627,1717423850887,-881.93,0.00031778,4]
[328470628,1717423850897,-512.78,0.00031778,4]
[328470629,1717423850907,-500.0,0.00031778,4]
[328470630,1717423850918,-500.0,0.00031778,4]
[328470631,1717423850927,-504.37,0.00031778,4]
[328470632,1717423850937,-2125.65,0.00031778,4]
[328470633,1717423850947,-542.95,0.00031778,4]
[328470634,1717423850956,-500.0,0.00031778,4]
[328470635,1717423850966,-630.75,0.00031778,4]
[328470636,1717423850976,-525.61,0.00031778,4]
[328470637,1717423850985,-500.0,0.00031778,4]
[328470638,1717423850995,-579.45749951,0.00031778,4]
[328470639,1717423851004,-500.0,0.00031778,4]
[328470640,1717423851014,-500.0,0.00031778,4]
[328470641,1717423851023,-500.0,0.00031778,4]
[328470642,1717423851033,-500.0,0.00031778,4]
[328470643,1717423851042,-500.0,0.00031778,4]
[328470644,1717423851051,-784.39,0.00031778,4]
[328470645,1717423851060,-748.96,0.00031778,4]
[328470646,1717423851070,-500.0,0.00031778,4]
[328470647,1717423851079,-500.0,0.00031778,4]
[328470648,1717423851089,-500.0,0.00031778,4]
[328470649,1717423851098,-616.01,0.00031778,4]
[328470650,1717423851108,-500.0,0.00031778,4]
[328470651,1717423851117,-653.74,0.00031778,4]
[328470652,1717423851127,-500.0,0.00031778,4]
[328470653,1717423851138,-1158.99,0.00031778,4]
[328470654,1717423851147,-500.0,0.00031778,4]
[328470655,1717423851157,-500.0,0.00031778,4]
[328470656,1717423851166,-261.19391942,0.00031778,4]
[328470657,1717423851176,-500.0,0.00031778,4]
[328470658,1717423851186,-802.19,0.00031778,4]
[328470659,1717423851195,-500.0,0.00031778,4]
[328470660,1717423851204,-500.0,0.00031778,4]
[328470661,1717423851214,-500.0,0.00031778,4]
[328470662,1717423851223,-500.0,0.00031778,4]
[328470663,1717423851233,-500.0,0.00031778,4]
[328470664,1717423851242,-151.0,0.00031779,7]
[328470665,1717423851252,-151.0,0.00031779,7]
[328470666,1717423851262,-500.0,0.00031779,4]
[328470667,1717423851272,-521.95457124,0.0003178,4]
[328470668,1717423851282,-500.0,0.0003178,4]
[328470669,1717423851291,-500.0,0.0003178,4]
[328470670,1717423851301,-243.399199,0.0003178,7]
[328470671,1717423851310,-151.0,0.0003178,7]
[328470672,1717423851319,-1068.06,0.0003178,4]
[328470673,1717423851329,-509.27424553,0.0003178,4]
[328470674,1717423851339,-500.0,0.0003178,4]
[328470675,1717423851349,-626.74330717,0.0003178,4]
[328470676,1717423851358,-500.0,0.0003178,4]
[328470677,1717423851368,-500.0,0.0003178,4]
[328470678,1717423851377,-156.583994,0.0003178,7]
[328470679,1717423851388,-500.0,0.0003178,4]
[328470680,1717423851398,-500.0,0.0003178,4]
[328470681,1717423851445,-515.93155464,0.0003178,4]
[328470682,1717423851454,-500.0,0.0003178,4]
[328470683,1717423851464,-151.0,0.0003178,7]
[328470684,1717423851473,-472.23190032,0.0003178,4]
[328470685,1717423851483,-500.0,0.0003178,4]
[328470686,1717423851492,-500.0,0.0003178,4]
[328470687,1717423851502,-500.0,0.0003178,4]
[328470688,1717423851511,-201.74855897,0.0003178,4]
[328470689,1717423851521,-500.0,0.0003178,4]
[328470690,1717423851530,-500.0,0.0003178,4]
[328470691,1717423851539,-918.28,0.0003178,4]
[328470692,1717423851549,-1370.83,0.0003178,4]
[328470693,1717423851559,-500.0,0.0003178,4]
[328470694,1717423851568,-500.0,0.0003178,4]
[328470695,1717423851577,-1000.18,0.0003178,4]
[328470696,1717423851586,-500.0,0.0003178,4]
[328470697,1717423851595,-2105.69,0.0003178,4]
[328470698,1717423851604,-698.67,0.0003178,4]
[328470699,1717423851613,-898.54,0.0003178,4]
[328470700,1717423851623,-5027.84,0.0003178,4]
[328470701,1717423851633,-500.0,0.0003178,4]
[328470702,1717423851643,-500.0,0.0003178,4]
[328470703,1717423851653,-500.0,0.0003178,4]
[328470704,1717423851662,-500.0,0.0003178,4]
[328470705,1717423851671,-500.0,0.0003178,4]
[328470706,1717423851681,-500.0,0.0003178,4]
[328470707,1717423851690,-500.0,0.0003178,4]
[328470708,1717423851699,-500.0,0.0003178,4]
[328470709,1717423851709,-500.0,0.0003178,4]
[328470710,1717423851718,-500.0,0.0003178,4]
[328470711,1717423851728,-500.0,0.0003178,4]
[328470712,1717423851737,-500.0,0.0003178,4]
[328470713,1717423851746,-500.0,0.0003178,4]
[328470714,1717423851756,-500.0,0.0003178,4]
[328470715,1717423851766,-500.0,0.0003178,4]
[328470716,1717423851776,-500.0,0.0003178,4]
[328470717,1717423851786,-500.0,0.0003178,4]
[328470718,1717423851796,-618.53,0.0003178,4]
[328470719,1717423851804,-598.01,0.0003178,4]
[328470720,1717423851813,-4233.41,0.0003178,4]
[328470721,1717423851823,-500.0,0.0003178,4]
[328470722,1717423851833,-500.0,0.0003178,4]
[328470723,1717423851846,-500.0,0.0003178,4]
[328470724,1717423851856,-500.0,0.0003178,4]
[328470725,1717423851865,-500.0,0.0003178,4]
[328470726,1717423851875,-500.0,0.0003178,4]
[328470727,1717423851886,-500.0,0.0003178,4]
[328470728,1717423851895,-500.0,0.0003178,4]
[328470729,1717423851904,-500.0,0.0003178,4]
[328470730,1717423851917,-523.72,0.0003178,4]
[328470731,1717423851929,-1216.31301935,0.00031794,15]
[328470732,1717423851938,-1535.99782312,0.00031794,15]
[328470733,1717423851948,-9215.2059804,0.00031818,3]
[328470734,1717423851957,-207.84204185,0.00031853,3]
[328470735,1717423851966,-173.88445557,0.000319,3]
[328470736,1717423851975,-303.01046065,0.000319,2]
[328470737,1717423851984,-900.0,0.000319,11]
[328470738,1717423851993,-174.9857197,0.00031914,7]
[328470739,1717423852002,-152.656571,0.00031919,2]
[328470740,1717423852011,-700.0,0.0003193,10]
[328470741,1717423852020,-157.44336949,0.00031933,7]
[328470742,1717423852029,-157.44336949,0.00031955,7]
[328470743,1717423852039,-9215.2059804,0.00031956,3]
[328470744,1717423852048,-1176.68345313,0.00031961,2]
[328470745,1717423852057,-151.0,0.00031988,7]
[328470746,1717423852067,-151.0,0.00031988,7]
[328470747,1717423852076,-500.0,0.00031999,4]
[328470748,1717423852085,-334.54277292,0.00032,4]
[328470749,1717423852094,-899.99999909,0.00032,33]
[328470750,1717423852104,-270.019014,0.00032,7]
[328470751,1717423852113,-151.0,0.00032,7]
[328470752,1717423852122,-1034.386488,0.00032,120]
[328470753,1717423852132,-169.134947,0.00032,7]
[328470754,1717423852143,-151.0,0.00032,7]
[328470755,1717423852152,-169.24585956,0.00032,2]
[328470756,1717423852161,-169.24585956,0.00032,2]
[328470757,1717423852170,-169.24585956,0.00032,2]
[328470758,1717423852179,-169.24585956,0.00032,2]
[328470759,1717423852189,-169.24585956,0.00032,2]
[328470760,1717423852199,-169.24585956,0.00032,2]
[328470761,1717423852209,-169.24585956,0.00032,2]
[328470762,1717423852219,-169.24585956,0.00032,2]
[328470763,1717423852228,-169.24585956,0.00032,2]
[328470764,1717423852237,-169.24585956,0.00032,2]
[328470765,1717423852247,-169.24585956,0.00032,2]
[328470766,1717423852256,-169.24585956,0.00032,2]
[328470767,1717423852265,-169.24585956,0.00032,2]
[328470768,1717423852274,-169.24585956,0.00032,2]
[328470769,1717423852283,-169.24585956,0.00032,2]
[328470770,1717423852293,-169.24585956,0.00032,2]
[328470771,1717423852303,-169.24585956,0.00032,2]
[328470772,1717423852312,-169.24585956,0.00032,2]
[328470773,1717423852322,-169.24585956,0.00032,2]
[328470774,1717423852332,-169.24585956,0.00032,2]
[328470775,1717423852341,-169.24585956,0.00032,2]
[328470776,1717423852351,-169.24585956,0.00032,2]
[328470777,1717423852361,-169.24585956,0.00032,2]
[328470778,1717423852370,-169.24585956,0.00032,2]
[328470779,1717423852379,-169.24585956,0.00032,2]
[328470780,1717423852390,-169.24585956,0.00032,2]
[328470781,1717423852400,-169.24585956,0.00032,2]
[328470782,1717423852409,-169.24585956,0.00032,2]
[328470783,1717423852419,-169.24585956,0.00032,2]
[328470784,1717423852429,-169.24585956,0.00032,2]
[328470785,1717423852438,-169.24585956,0.00032,2]
[328470786,1717423852447,-169.24585956,0.00032,2]
[328470787,1717423852457,-169.24585956,0.00032,2]
[328470788,1717423852466,-169.24585956,0.00032,2]
[328470789,1717423852476,-169.24585956,0.00032,2]
[328470790,1717423852486,-169.24585956,0.00032,2]
[328470791,1717423852495,-169.24585956,0.00032,2]
[328470792,1717423852506,-169.24585956,0.00032,2]
[328470793,1717423852516,-169.24585956,0.00032,2]
[328470794,1717423852527,-169.24585956,0.00032,2]
[328470795,1717423852537,-169.24585956,0.00032,2]
[328470796,1717423852547,-169.24585956,0.00032,2]
[328470797,1717423852556,-169.24585956,0.00032,2]
[328470798,1717423852565,-169.24585956,0.00032,2]
[328470799,1717423852575,-169.24585956,0.00032,2]
[328470800,1717423852585,-169.24585956,0.00032,2]
[328470801,1717423852594,-169.24585956,0.00032,2]
[328470802,1717423852605,-169.24585956,0.00032,2]
[328470803,1717423852616,-169.24585956,0.00032,2]
[328470804,1717423852626,-169.24585956,0.00032,2]
[328470805,1717423852637,-840.11427597,0.00032,2]
[328470806,1717423852646,-840.11427597,0.00032,2]
[328470807,1717423852655,-840.11427597,0.00032,2]
[328470808,1717423852664,-840.11427597,0.00032,2]
[328470809,1717423852673,-840.11427597,0.00032,2]
[328470810,1717423852683,-245.064776,0.00032,7]
[328470811,1717423852693,-151.0,0.00032,7]
[328470812,1717423852702,-151.0,0.00032,7]
[328470813,1717423852712,-211.334701,0.00032,7]
[328470814,1717423852721,-211.334701,0.00032,7]
[328470815,1717423852731,-374.531371,0.00032,7]
[328470816,1717423852741,-151.0,0.00032,7]
[328470817,1717423852751,-374.531371,0.00032,7]
[328470818,1717423852760,-151.0,0.00032,7]
[328470819,1717423852770,-151.0,0.00032,7]
[328470820,1717423852780,-151.0,0.00032,7]
[328470821,1717423852790,-1465.93520076,0.00032,2]
[328470822,1717423852800,-1465.93520076,0.00032,2]
[328470823,1717423852810,-1465.93520076,0.00032,2]
[328470824,1717423852819,-1465.93520076,0.00032,2]
[328470825,1717423852829,-1465.93520076,0.00032,2]
[328470826,1717423852839,-1465.93520076,0.00032,2]
[328470827,1717423852852,-1465.93520076,0.00032,2]
[328470828,1717423852861,-1465.93520076,0.00032,2]
[328470829,1717423852871,-1465.93520076,0.00032,2]
[328470830,1717423852880,-1465.93520076,0.00032,2]
[328470831,1717423852892,-1465.93520076,0.00032,2]
[328470832,1717423852901,-1465.93520076,0.00032,2]
[328470833,1717423852910,-1465.93520076,0.00032,2]
[328470834,1717423852920,-1465.93520076,0.00032,2]
[328470835,1717423852930,-1465.93520076,0.00032,2]
[328470836,1717423852940,-1465.93520076,0.00032,2]
[328470837,1717423852949,-1465.93520076,0.00032,2]
[328470838,1717423852958,-1465.93520076,0.00032,2]
[328470839,1717423852968,-1465.93520076,0.00032,2]
[328470840,1717423852978,-1465.93520076,0.00032,2]
[328470841,1717423852987,-1465.93520076,0.00032,2]
[328470842,1717423852997,-1465.93520076,0.00032,2]
[328470843,1717423853007,-1465.93520076,0.00032,2]
[328470844,1717423853017,-1465.93520076,0.00032,2]
[328470845,1717423853027,-1465.93520076,0.00032,2]
[328470846,1717423853036,-1465.93520076,0.00032,2]
[328470847,1717423853046,-1465.93520076,0.00032,2]
[328470848,1717423853055,-1465.93520076,0.00032,2]
[328470849,1717423853065,-1465.93520076,0.00032,2]
[328470850,1717423853075,-1465.93520076,0.00032,2]
[328470851,1717423853085,-1465.93520076,0.00032,2]
[328470852,1717423853095,-1465.93520076,0.00032,2]
[328470853,1717423853105,-1465.93520076,0.00032,2]
[328470854,1717423853114,-1465.93520076,0.00032,2]
[328470855,1717423853124,-1465.93520076,0.00032,2]
[328470856,1717423853134,-1465.93520076,0.00032,2]
[328470857,1717423853145,-1465.93520076,0.00032,2]
[328470858,1717423853154,-1465.93520076,0.00032,2]
[328470859,1717423853164,-1465.93520076,0.00032,2]
[328470860,1717423853174,-1465.93520076,0.00032,2]
[328470861,1717423853183,-1465.93520076,0.00032,2]
[328470862,1717423853193,-1465.93520076,0.00032,2]
[328470863,1717423853203,-1465.93520076,0.00032,2]
[328470864,1717423853214,-1465.93520076,0.00032,2]
[328470865,1717423853224,-1465.93520076,0.00032,2]
[328470866,1717423853234,-1465.93520076,0.00032,2]
[328470867,1717423853245,-1465.93520076,0.00032,2]
[328470868,1717423853254,-1465.93520076,0.00032,2]
[328470869,1717423853264,-1465.93520076,0.00032,2]
[328470870,1717423853274,-1465.93520076,0.00032,2]
[328470871,1717423853284,-1465.93520076,0.00032,2]
[328470872,1717423853305,-1465.93520076,0.00032,2]
[328470873,1717423853316,-1465.93520076,0.00032,2]
[328470874,1717423853326,-1465.93520076,0.00032,2]
[328470875,1717423853337,-1465.93520076,0.00032,2]
[328470876,1717423853347,-1465.93520076,0.00032,2]
[328470877,1717423853357,-1465.93520076,0.00032,2]
[328470878,1717423853367,-1465.93520076,0.00032,2]
[328470879,1717423853377,-1465.93520076,0.00032,2]
[328470880,1717423853389,-1465.93520076,0.00032,2]
[328470881,1717423853399,-150.0,0.00032011,2]
[328470882,1717423853409,-5000.0,0.0003202,2]
[328470883,1717423853419,-150.79906213,0.00032024,7]
[328470884,1717423853430,-299.562363,0.00032047,7]
[328470885,1717423853441,-875.827,0.00032048,2]
[328470886,1717423853451,-358.0,0.00032048,2]
[328470887,1717423853462,-1645.0,0.00032048,2]
[328470888,1717423853472,-615.0,0.00032048,2]
[328470889,1717423853482,-1266.0,0.00032048,2]
[328470890,1717423853492,-1546.0,0.00032048,2]
[328470891,1717423853503,-440.0,0.00032048,2]
[328470892,1717423853514,-500.0,0.00032052,4]
[328470893,1717423853525,-594.75,0.00032052,4]
[328470894,1717423853535,-215.29737663,0.00032052,4]
[328470895,1717423853546,-757.65,0.00032052,4]
[328470896,1717423853556,-500.0,0.00032052,4]
[328470897,1717423853566,-500.0,0.00032052,4]
[328470898,1717423853577,-874.8,0.00032052,4]
[328470899,1717423853587,-500.0,0.00032052,4]
[328470900,1717423853597,-840.86,0.00032052,4]
[328470901,1717423853608,-500.0,0.00032052,4]
[328470902,1717423853618,-500.0,0.00032052,4]
[328470903,1717423853628,-500.0,0.00032052,4]
[328470904,1717423853641,-500.0,0.00032052,4]
[328470905,1717423853651,-500.0,0.00032052,4]
[328470906,1717423853661,-500.0,0.00032052,4]
[328470907,1717423853670,-500.0,0.00032052,4]
[328470908,1717423853680,-500.0,0.00032052,4]
[328470909,1717423853691,-500.0,0.00032052,4]
[328470910,1717423853700,-500.0,0.00032052,4]
[328470911,1717423853711,-500.0,0.00032052,4]
[328470912,1717423853722,-588.11,0.00032052,4]
[328470913,1717423853732,-500.0,0.00032052,4]
[328470914,1717423853743,-500.0,0.00032052,4]
[328470915,1717423853753,-516.13,0.00032052,4]
[328470916,1717423853764,-529.46,0.00032052,4]
[328470917,1717423853774,-500.0,0.00032052,4]
[328470918,1717423853784,-500.0,0.00032052,4]
[328470919,1717423853794,-606.72,0.00032052,4]
[328470920,1717423853805,-519.1,0.00032052,4]
[328470921,1717423853816,-500.0,0.00032052,4]
[328470922,1717423853827,-4664.69,0.00032052,4]
[328470923,1717423853843,-877.52,0.00032052,4]
[328470924,1717423853854,-881.93,0.00032052,4]
[328470925,1717423853865,-512.78,0.00032052,4]
[328470926,1717423853875,-500.0,0.00032052,4]
[328470927,1717423853891,-500.0,0.00032052,4]
[328470928,1717423853902,-504.37,0.00032052,4]
[328470929,1717423853912,-2125.65,0.00032052,4]
[328470930,1717423853922,-542.95,0.00032052,4]
[328470931,1717423853936,-500.0,0.00032052,4]
[328470932,1717423853946,-630.75,0.00032052,4]
[328470933,1717423853957,-500.0,0.00032052,4]
[328470934,1717423853967,-525.61,0.00032052,4]
[328470935,1717423853978,-500.0,0.00032052,4]
[328470936,1717423853989,-500.0,0.00032052,4]
[328470937,1717423854000,-500.0,0.00032052,4]
[328470938,1717423854010,-196.03838572,0.00032052,4]
[328470939,1717423854021,-500.0,0.00032052,4]
[328470940,1717423854031,-784.39,0.00032052,4]
[328470941,1717423854042,-748.96,0.00032052,4]
[328470942,1717423854052,-500.0,0.00032052,4]
[328470943,1717423854063,-500.0,0.00032052,4]
[328470944,1717423854073,-616.01,0.00032052,4]
[328470945,1717423854084,-500.0,0.00032052,4]
[328470946,1717423854095,-653.74,0.00032052,4]
[328470947,1717423854106,-500.0,0.00032052,4]
[328470948,1717423854116,-151.0,0.00032052,7]
[328470949,1717423854126,-1158.99,0.00032052,4]
[328470950,1717423854138,-500.0,0.00032052,4]
[328470951,1717423854149,-500.0,0.00032052,4]
[328470952,1717423854160,-500.0,0.00032052,4]
[328470953,1717423854170,-151.0,0.00032052,7]
[328470954,1717423854181,-802.19,0.00032052,4]
[328470955,1717423854192,-500.0,0.00032052,4]
[328470956,1717423854202,-500.0,0.00032052,4]
[328470957,1717423854213,-500.0,0.00032052,4]
[328470958,1717423854224,-500.0,0.00032052,4]
[328470959,1717423854235,-151.0,0.00032052,7]
[328470960,1717423854246,-500.0,0.00032052,4]
[328470961,1717423854257,-500.0,0.00032054,4]
[328470962,1717423854269,-360.16298991,0.00032054,4]
[328470963,1717423854439,-1068.06,0.00032054,4]
[328470964,1717423854449,-269.1026468,0.00032054,4]
[328470965,1717423854459,-500.0,0.00032054,4]
[328470966,1717423854469,-500.0,0.00032054,4]
[328470967,1717423854478,-500.0,0.00032054,4]
[328470968,1717423854488,-500.0,0.00032054,4]
[328470969,1717423854497,-500.0,0.00032054,4]
[328470970,1717423854507,-500.0,0.00032054,4]
[328470971,1717423854516,-500.0,0.00032054,4]
[328470972,1717423854525,-500.0,0.00032054,4]
[328470973,1717423854535,-500.0,0.00032054,4]
[328470974,1717423854546,-918.28,0.00032054,4]
[328470975,1717423854555,-1370.83,0.00032054,4]
[328470976,1717423854565,-500.0,0.00032054,4]
[328470977,1717423854575,-500.0,0.00032054,4]
[328470978,1717423854584,-151.0,0.00032054,7]
[328470979,1717423854594,-1000.18,0.00032054,4]
[328470980,1717423854603,-209.352499,0.00032054,7]
[328470981,1717423854613,-500.0,0.00032054,4]
[328470982,1717423854623,-2105.69,0.00032054,4]
[328470983,1717423854632,-698.67,0.00032054,4]